fUST/lending_fUST_20250228
["ID","MTS","AMOUNT","RATE_DAILY","PERIOD"]
[354809878,1740711052649,-448.133255,0.00087671,120]
[354809879,1740711052659,-448.133255,0.00087671,120]
[354809880,1740711052669,-500.0,0.00087671,120]
[354809881,1740711052679,-1220.83,0.00087671,120]
[354809882,1740711052693,-3264.74,0.00087671,120]
[354809883,1740711052703,-1178.86,0.00087671,120]
[354809884,1740711052713,-544.0,0.00087671,120]
[354809885,1740711052723,-544.0,0.00087671,120]
[354809886,1740711052734,-544.0,0.00087671,120]
[354809887,1740711052744,-544.0,0.00087671,120]
[354809888,1740711052753,-544.0,0.00087671,120]
[354809889,1740711052763,-544.0,0.00087671,120]
[354809890,1740711052777,-544.0,0.00087671,120]
[354809891,1740711052786,-544.0,0.00087671,120]
[354809892,1740711052796,-544.0,0.00087671,120]
[354809893,1740711052806,-544.0,0.00087671,120]
[354809894,1740711052817,-544.0,0.00087671,120]
[354809895,1740711052826,-544.0,0.00087671,120]
[354809896,1740711052836,-544.0,0.00087671,120]
[354809897,1740711052845,-544.0,0.00087671,120]
[354809898,1740711052855,-544.0,0.00087671,120]
[354809899,1740711052866,-544.0,0.00087671,120]
[354809900,1740711052875,-544.0,0.00087671,120]
[354809901,1740711052885,-544.0,0.00087671,120]
[354809902,1740711052894,-544.0,0.00087671,120]
[354809903,1740711052904,-544.0,0.00087671,120]
[354809904,1740711052914,-544.0,0.00087671,120]
[354809905,1740711052925,-544.0,0.00087671,120]
[354809906,1740711052934,-544.0,0.00087671,120]
[354809907,1740711052943,-544.0,0.00087671,120]
[354809908,1740711052952,-544.0,0.00087671,120]
[354809909,1740711052963,-544.0,0.00087671,120]
[354809910,1740711052973,-544.0,0.00087671,120]
[354809911,1740711052983,-500.0,0.00087834,120]
[354809912,1740711052991,-500.0,0.000879,120]
[354809913,1740711053083,-500.0,0.000879,120]
[354809914,1740711053093,-500.0,0.000879,120]
[354809915,1740711053103,-500.0,0.000879,120]
[354809916,1740711053112,-500.0,0.000879,120]
[354809917,1740711053123,-500.0,0.0008799,120]
[354809918,1740711053132,-1624.99,0.00088116,120]
[354809919,1740711053142,-560.65,0.00088116,120]
[354809920,1740711053151,-1395.02,0.00088116,120]
[354809921,1740711053161,-5503.07,0.00088116,120]
[354809922,1740711053173,-586.18,0.00088215,120]
[354809923,1740711053183,-500.0,0.00088215,120]
[354809924,1740711053193,-208.41736184,0.00088215,120]
[354809925,1740711053203,-689.73,0.00088215,120]
[354809926,1740711053213,-721.81,0.00088215,120]
[354809927,1740711053223,-3541.66,0.00088215,120]
[354809928,1740711053233,-1916.66,0.00088215,120]
[354809929,1740711053243,-3093.38,0.00088215,120]
[354809930,1740711053252,-745.08,0.00088215,120]
[354809931,1740711053262,-1141.61,0.00088215,120]
[354809932,1740711053272,-585.52,0.00088215,120]
[354809933,1740711053281,-2121.8,0.00088215,120]
[354809934,1740711053291,-500.0,0.00088215,120]
[354809935,1740711053300,-799.49,0.00088215,120]
[354809936,1740711053310,-1492.81,0.00088215,120]
[354809937,1740711053320,-762.94,0.00088215,120]
[354809938,1740711053329,-500.0,0.00088215,120]
[354809939,1740711053339,-500.0,0.00088215,120]
[354809940,1740711053348,-725.19,0.00088215,120]
[354809941,1740711053358,-500.0,0.00088215,120]
[354809942,1740711053367,-6264.52,0.00088215,120]
[354809943,1740711053377,-500.0,0.00088215,120]
[354809944,1740711053387,-15140.25,0.00088215,7]
[354809945,1740711053397,-1016.52,0.00088215,120]
[354809946,1740711053406,-500.0,0.00088215,120]
[354809947,1740711053416,-500.0,0.00088215,120]
[354809948,1740711053428,-500.0,0.00088215,120]
[354809949,1740711053438,-535.88,0.00088216,120]
[354809950,1740711053447,-500.0,0.00088216,120]
[354809951,1740711053458,-500.0,0.00088216,120]
[354809952,1740711053468,-500.0,0.00088216,120]
[354809953,1740711053477,-619.7,0.00088216,120]
[354809954,1740711053488,-500.0,0.00088216,120]
[354809955,1740711053498,-500.0,0.00088216,120]
[354809956,1740711053508,-3780.72,0.00088216,120]
[354809957,1740711053518,-3816.17,0.00088216,120]
[354809958,1740711053528,-28125.23,0.00088216,7]
[354809959,1740711053537,-2308.32,0.00088216,120]
[354809960,1740711053547,-684.28,0.00088216,120]
[354809961,1740711053556,-500.0,0.00088216,120]
[354809962,1740711053566,-243.489535,0.00088217,120]
[354809963,1740711053576,-500.0,0.00088217,120]
[354809964,1740711053586,-500.0,0.00088217,120]
[354809965,1740711053595,-500.0,0.00088217,120]
[354809966,1740711053604,-500.0,0.00088217,120]
[354809967,1740711053615,-500.0,0.00088217,120]
[354809968,1740711053625,-3354.16,0.00088217,120]
[354809969,1740711053635,-500.0,0.00088217,120]
[354809970,1740711053644,-3661.29,0.000883,60]
[354809971,1740711053654,-1431.26,0.000883,60]
[354809972,1740711053664,-2000.0,0.000892,120]
[354809973,1740711053677,-302.0,0.00090055,120]
[354809974,1740711053689,-527.90881989,0.0009041,120]
[354809975,1740711053699,-500.0,0.0009041,120]
[354809976,1740711053709,-1220.83,0.0009041,120]
[354809977,1740711053718,-3264.74,0.0009041,120]
[354809978,1740711053730,-1178.86,0.0009041,120]
[354809979,1740711053739,-1624.99,0.00090856,120]
[354809980,1740711053749,-560.65,0.00090856,120]
[354809981,1740711053758,-1395.02,0.00090856,120]
[354809982,1740711053768,-151.0,0.0009089,120]
[354809983,1740711053779,-1916.66,0.00090954,120]
[354809984,1740711053790,-3093.38,0.00090954,120]
[354809985,1740711053800,-745.08,0.00090954,120]
[354809986,1740711053809,-1141.61,0.00090954,120]
[354809987,1740711053819,-585.52,0.00090954,120]
[354809988,1740711053829,-2121.8,0.00090954,120]
[354809989,1740711053839,-799.49,0.00090954,120]
[354809990,1740711053849,-1492.81,0.00090954,120]
[354809991,1740711053858,-762.94,0.00090954,120]
[354809992,1740711053868,-500.0,0.00090954,120]
[354809993,1740711053878,-500.0,0.00090954,120]
[354809994,1740711053888,-500.0,0.00090954,120]
[354809995,1740711053898,-6264.52,0.00090954,120]
[354809996,1740711053907,-500.0,0.00090954,120]
[354809997,1740711053920,-15140.25,0.00090954,7]
[354809998,1740711053929,-1016.52,0.00090954,120]
[354809999,1740711053939,-500.0,0.00090954,120]
[354810000,1740711053949,-500.0,0.00090954,120]
[354810001,1740711053959,-535.88,0.00090955,120]
[354810002,1740711053969,-586.18,0.00090955,120]
[354810003,1740711053979,-500.0,0.00090955,120]
[354810004,1740711053989,-500.0,0.00090955,120]
[354810005,1740711053998,-500.0,0.00090955,120]
[354810006,1740711054009,-689.73,0.00090955,120]
[354810007,1740711054018,-429.14890437,0.00090955,120]
[354810008,1740711054027,-619.7,0.00090955,120]
[354810009,1740711054037,-721.81,0.00090955,120]
[354810010,1740711054046,-3541.66,0.00090955,120]
[354810011,1740711054056,-500.0,0.00090955,120]
[354810012,1740711054066,-500.0,0.00090955,120]
[354810013,1740711054075,-3780.72,0.00090955,120]
[354810014,1740711054085,-3816.17,0.00090955,120]
[354810015,1740711054094,-28125.23,0.00090955,7]
[354810016,1740711054105,-2308.32,0.00090955,120]
[354810017,1740711054115,-684.28,0.00090955,120]
[354810018,1740711054125,-500.0,0.00090955,120]
[354810019,1740711054135,-500.0,0.00090955,120]
[354810020,1740711054145,-725.19,0.00090955,120]
[354810021,1740711054154,-500.0,0.00090955,120]
[354810022,1740711054163,-500.0,0.00090957,120]
[354810023,1740711054176,-500.0,0.00090957,120]
[354810024,1740711054185,-500.0,0.00090957,120]
[354810025,1740711054195,-500.0,0.00090957,120]
[354810026,1740711054205,-500.0,0.00090957,120]
[354810027,1740711054214,-151.0,0.00090957,120]
[354810028,1740711054224,-933.044701,0.00090957,120]
[354810029,1740711054234,-3354.16,0.00090957,120]
[354810030,1740711054244,-371.500554,0.00090957,120]
[354810031,1740711054253,-371.500554,0.00090957,120]
[354810032,1740711054263,-500.0,0.00090957,120]
[354810033,1740711054272,-160.0,0.00091683,120]
[354810034,1740711054281,-64468.83,0.000917,60]
[354810035,1740711054290,-241.557033,0.000917,120]
[354810036,1740711054300,-151.0,0.000917,120]
[354810037,1740711054309,-151.0,0.000917,120]
[354810038,1740711054318,-151.0,0.000917,120]
[354810039,1740711054328,-151.0,0.000917,120]
[354810040,1740711054337,-151.0,0.000917,120]
[354810041,1740711054347,-151.0,0.000917,120]
[354810042,1740711054356,-151.0,0.000917,120]
[354810043,1740711054365,-151.0,0.000917,120]
[354810044,1740711054374,-467.167709,0.000917,120]
[354810045,1740711054383,-467.167709,0.000917,120]
[354810046,1740711054392,-324.32,0.000917,60]
[354810047,1740711054401,-1792.35,0.000929,60]
[354810048,1740711054411,-500.0,0.0009315,120]
[354810049,1740711054423,-1220.83,0.0009315,120]
[354810050,1740711054432,-3264.74,0.0009315,120]
[354810051,1740711054442,-1178.86,0.0009315,120]
[354810052,1740711054452,-179.39007375,0.00093401,60]
[354810053,1740711054461,-1624.99,0.00093595,120]
[354810054,1740711054471,-560.65,0.00093595,120]
[354810055,1740711054480,-151.0,0.00093595,120]
[354810056,1740711054489,-151.0,0.00093595,120]
[354810057,1740711054498,-1076.841152,0.00093595,120]
[354810058,1740711054507,-1395.02,0.00093595,120]
[354810059,1740711054516,-1076.841152,0.00093595,120]
[354810060,1740711054526,-184.451296,0.00093595,120]
[354810061,1740711054535,-184.451296,0.00093595,120]
[354810062,1740711054545,-5503.07,0.00093595,120]
[354810063,1740711054554,-586.18,0.00093694,120]
[354810064,1740711054563,-500.0,0.00093694,120]
[354810065,1740711054573,-689.73,0.00093694,120]
[354810066,1740711054583,-721.81,0.00093694,120]
[354810067,1740711054593,-3541.66,0.00093694,120]
[354810068,1740711054603,-1916.66,0.00093694,120]
[354810069,1740711054612,-3093.38,0.00093694,120]
[354810070,1740711054622,-745.08,0.00093694,120]
[354810071,1740711054631,-1141.61,0.00093694,120]
[354810072,1740711054640,-585.52,0.00093694,120]
[354810073,1740711054649,-2121.8,0.00093694,120]
[354810074,1740711054659,-500.0,0.00093694,120]
[354810075,1740711054668,-799.49,0.00093694,120]
[354810076,1740711054679,-1492.81,0.00093694,120]
[354810077,1740711054692,-762.94,0.00093694,120]
[354810078,1740711054702,-500.0,0.00093694,120]
[354810079,1740711054711,-500.0,0.00093694,120]
[354810080,1740711054719,-725.19,0.00093694,120]
[354810081,1740711054731,-500.0,0.00093694,120]
[354810082,1740711054741,-6264.52,0.00093694,120]
[354810083,1740711054751,-500.0,0.00093694,120]
[354810084,1740711054760,-15140.25,0.00093694,7]
[354810085,1740711054770,-1016.52,0.00093694,120]
[354810086,1740711054781,-380.35671325,0.00093694,120]
[354810087,1740711054790,-500.0,0.00093694,120]
[354810088,1740711054799,-500.0,0.00093694,120]
[354810089,1740711054808,-535.88,0.00093695,120]
[354810090,1740711054818,-500.0,0.00093695,120]
[354810091,1740711054827,-500.0,0.00093695,120]
[354810092,1740711054837,-619.7,0.00093695,120]
[354810093,1740711054847,-500.0,0.00093695,120]
[354810094,1740711054856,-500.0,0.00093695,120]
[354810095,1740711054865,-3780.72,0.00093695,120]
[354810096,1740711054875,-157.963851,0.00093695,120]
[354810097,1740711054885,-3816.17,0.00093695,120]
[354810098,1740711054895,-168.312557,0.00093695,120]
[354810099,1740711054905,-28125.23,0.00093695,7]
[354810100,1740711054915,-347.378101,0.00093695,120]
[354810101,1740711054928,-347.378101,0.00093695,120]
[354810102,1740711054938,-2308.32,0.00093695,120]
[354810103,1740711054947,-151.0,0.00093695,120]
[354810104,1740711054957,-151.0,0.00093695,120]
[354810105,1740711054967,-151.0,0.00093695,120]
[354810106,1740711055056,-684.28,0.00093695,120]
[354810107,1740711055066,-690.848298,0.00093695,120]
[354810108,1740711055075,-627.72202478,0.00093695,120]
[354810109,1740711055085,-690.848298,0.00093695,120]
[354810110,1740711055095,-151.0,0.00093695,120]
[354810111,1740711055104,-500.0,0.00093696,120]
[354810112,1740711055113,-500.0,0.00093696,120]
[354810113,1740711055122,-500.0,0.00093696,120]
[354810114,1740711055132,-500.0,0.00093696,120]
[354810115,1740711055141,-500.0,0.00093696,120]
[354810116,1740711055151,-3354.16,0.00093696,120]
[354810117,1740711055160,-305.43661287,0.00093696,120]
[354810118,1740711055171,-50008.6088,0.000944,120]
[354810119,1740711055180,-157.854303,0.000944,120]
[354810120,1740711055189,-672.305236,0.000944,120]
[354810121,1740711055199,-672.305236,0.000944,120]
[354810122,1740711055208,-151.0,0.000944,2]
[354810123,1740711055218,-151.0,0.000944,2]
[354810124,1740711055228,-448.133255,0.000944,120]
[354810125,1740711055237,-448.133255,0.000944,120]
[354810126,1740711055246,-355.7160855,0.00095753,60]
[354810127,1740711055255,-355.7160855,0.00095753,60]
[354810128,1740711055264,-355.7160855,0.00095753,60]
[354810129,1740711055273,-355.7160855,0.00095753,60]
[354810130,1740711055282,-355.7160855,0.00095753,60]
[354810131,1740711055291,-355.7160855,0.00095753,60]
[354810132,1740711055300,-355.7160855,0.00095753,60]
[354810133,1740711055310,-355.7160855,0.00095753,60]
[354810134,1740711055319,-355.7160855,0.00095753,60]
[354810135,1740711055329,-355.7160855,0.00095753,60]
[354810136,1740711055338,-355.7160855,0.00095753,60]
[354810137,1740711055347,-355.7160855,0.00095753,60]
[354810138,1740711055356,-355.7160855,0.00095753,60]
[354810139,1740711055366,-355.7160855,0.00095753,60]
[354810140,1740711055375,-355.7160855,0.00095753,60]
[354810141,1740711055384,-355.7160855,0.00095753,60]
[354810142,1740711055393,-355.7160855,0.00095753,60]
[354810143,1740711055402,-355.7160855,0.00095753,60]
[354810144,1740711055411,-355.7160855,0.00095753,60]
[354810145,1740711055423,-355.7160855,0.00095753,60]
[354810146,1740711055432,-355.7160855,0.00095753,60]
[354810147,1740711055442,-355.7160855,0.00095753,60]
[354810148,1740711055451,-355.7160855,0.00095753,60]
[354810149,1740711055461,-355.7160855,0.00095753,60]
[354810150,1740711055470,-355.7160855,0.00095753,60]
[354810151,1740711055480,-612.3819138,0.00095753,60]
[354810152,1740711055489,-500.0,0.0009589,120]
[354810153,1740711055499,-1220.83,0.0009589,120]
[354810154,1740711055508,-3264.74,0.0009589,120]
[354810155,1740711055517,-1178.86,0.0009589,120]
[354810156,1740711055527,-504.87015004,0.00096,120]
[354810157,1740711055536,-153.0,0.00096164,60]
[354810158,1740711055545,-154.8760086,0.00096164,60]
[354810159,1740711055554,-153.0,0.00096164,60]
[354810160,1740711055563,-557.5803526,0.00096164,60]
[354810161,1740711055572,-153.0,0.00096164,60]
[354810162,1740711055581,-153.0,0.00096164,60]
[354810163,1740711055591,-1624.99,0.00096335,120]
[354810164,1740711055601,-560.65,0.00096335,120]
[354810165,1740711055610,-1395.02,0.00096335,120]
[354810166,1740711055620,-2538.45481769,0.00096408,7]
[354810167,1740711055629,-586.18,0.00096434,120]
[354810168,1740711055639,-500.0,0.00096434,120]
[354810169,1740711055649,-689.73,0.00096434,120]
[354810170,1740711055659,-721.81,0.00096434,120]
[354810171,1740711055669,-3541.66,0.00096434,120]
[354810172,1740711055679,-1916.66,0.00096434,120]
[354810173,1740711055689,-3093.38,0.00096434,120]
[354810174,1740711055699,-745.08,0.00096434,120]
[354810175,1740711055712,-1141.61,0.00096434,120]
[354810176,1740711055721,-585.52,0.00096434,120]
[354810177,1740711055731,-2121.8,0.00096434,120]
[354810178,1740711055740,-500.0,0.00096434,120]
[354810179,1740711055763,-799.49,0.00096434,120]
[354810180,1740711055773,-1492.81,0.00096434,120]
[354810181,1740711055782,-762.94,0.00096434,120]
[354810182,1740711055792,-500.0,0.00096434,120]
[354810183,1740711055802,-500.0,0.00096434,120]
[354810184,1740711055811,-725.19,0.00096434,120]
[354810185,1740711055821,-500.0,0.00096434,120]
[354810186,1740711055830,-6264.52,0.00096434,120]
[354810187,1740711055840,-500.0,0.00096434,120]
[354810188,1740711055849,-15140.25,0.00096434,7]
[354810189,1740711055859,-1016.52,0.00096434,120]
[354810190,1740711055868,-500.0,0.00096434,120]
[354810191,1740711055877,-500.0,0.00096434,120]
[354810192,1740711055887,-535.88,0.00096435,120]
[354810193,1740711055896,-500.0,0.00096435,120]
[354810194,1740711055906,-500.0,0.00096435,120]
[354810195,1740711055915,-619.7,0.00096435,120]
[354810196,1740711055926,-500.0,0.00096435,120]
[354810197,1740711055936,-500.0,0.00096435,120]
[354810198,1740711055945,-3780.72,0.00096435,120]
[354810199,1740711055955,-3816.17,0.00096435,120]
[354810200,1740711055964,-28125.23,0.00096435,7]
[354810201,1740711055974,-2308.32,0.00096435,120]
[354810202,1740711055984,-684.28,0.00096435,120]
[354810203,1740711055993,-500.0,0.00096436,120]
[354810204,1740711056003,-542.40193351,0.00096436,120]
[354810205,1740711056013,-500.0,0.00096436,120]
[354810206,1740711056023,-500.0,0.00096436,120]
[354810207,1740711056033,-500.0,0.00096436,120]
[354810208,1740711056043,-3354.16,0.00096436,120]
[354810209,1740711056053,-500.0,0.00097633,120]
[354810210,1740711056063,-151.0,0.00098599,120]
[354810211,1740711056073,-151.0,0.00098599,120]
[354810212,1740711056083,-3661.29,0.000986,60]
[354810213,1740711056093,-1431.26,0.000986,60]
[354810214,1740711056103,-156.74161121,0.00098629,120]
[354810215,1740711056114,-500.0,0.00098629,120]
[354810216,1740711056124,-500.0,0.0009863,120]
[354810217,1740711056135,-1220.83,0.0009863,120]
[354810218,1740711056144,-3264.74,0.0009863,120]
[354810219,1740711056154,-1178.86,0.0009863,120]
[354810220,1740711056164,-500.0,0.000988,120]
[354810221,1740711056176,-500.0,0.000988,120]
[354810222,1740711056185,-500.0,0.000988,120]
[354810223,1740711056195,-500.0,0.000988,120]
[354810224,1740711056204,-700.0,0.000988,120]
[354810225,1740711056214,-1350.0,0.00099,120]
[354810226,1740711056224,-1350.0,0.00099,120]
[354810227,1740711056234,-1350.0,0.00099,120]
[354810228,1740711056243,-1350.0,0.00099,120]
[354810229,1740711056253,-185532.64839344,0.00099,30]
[354810230,1740711056262,-38489.24518124,0.00099,30]
[354810231,1740711056272,-151.0,0.00099,120]
[354810232,1740711056281,-151.0,0.00099,120]
[354810233,1740711056291,-933.044701,0.00099,120]
[354810234,1740711056301,-371.500554,0.00099,120]
[354810235,1740711056310,-371.500554,0.00099,120]
[354810236,1740711056320,-347.378101,0.00099,120]
[354810237,1740711056330,-347.378101,0.00099,120]
[354810238,1740711056340,-151.0,0.00099,120]
[354810239,1740711056349,-151.0,0.00099,120]
[354810240,1740711056359,-151.0,0.00099,120]
[354810241,1740711056368,-690.848298,0.00099,120]
[354810242,1740711056378,-690.848298,0.00099,120]
[354810243,1740711056387,-176.350958,0.00099,120]
[354810244,1740711056397,-151.0,0.00099,120]
[354810245,1740711056406,-243.715885,0.00099,120]
[354810246,1740711056416,-1076.841152,0.00099,120]
[354810247,1740711056428,-1076.841152,0.00099,120]
[354810248,1740711056438,-184.451296,0.00099,120]
[354810249,1740711056447,-184.451296,0.00099,120]
[354810250,1740711056456,-151.0,0.00099,120]
[354810251,1740711056466,-1624.99,0.00099075,120]
[354810252,1740711056475,-560.65,0.00099075,120]
[354810253,1740711056485,-1395.02,0.00099075,120]
[354810254,1740711056495,-5503.07,0.00099075,120]
[354810255,1740711056504,-1916.66,0.00099173,120]
[354810256,1740711056514,-3093.38,0.00099173,120]
[354810257,1740711056523,-745.08,0.00099173,120]
[354810258,1740711056533,-1141.61,0.00099173,120]
[354810259,1740711056543,-585.52,0.00099173,120]
[354810260,1740711056552,-2121.8,0.00099173,120]
[354810261,1740711056562,-799.49,0.00099173,120]
[354810262,1740711056571,-1492.81,0.00099173,120]
[354810263,1740711056581,-762.94,0.00099173,120]
[354810264,1740711056590,-500.0,0.00099173,120]
[354810265,1740711056600,-500.0,0.00099173,120]
[354810266,1740711056609,-500.0,0.00099173,120]
[354810267,1740711056619,-6264.52,0.00099173,120]
[354810268,1740711056628,-500.0,0.00099173,120]
[354810269,1740711056638,-15140.25,0.00099173,7]
[354810270,1740711056647,-1016.52,0.00099173,120]
[354810271,1740711056656,-500.0,0.00099173,120]
[354810272,1740711056666,-586.18,0.00099174,120]
[354810273,1740711056677,-500.0,0.00099174,120]
[354810274,1740711056688,-689.73,0.00099174,120]
[354810275,1740711056698,-721.81,0.00099174,120]
[354810276,1740711056707,-3541.66,0.00099174,120]
[354810277,1740711056716,-500.0,0.00099174,120]
[354810278,1740711056727,-725.19,0.00099174,120]
[354810279,1740711056737,-379.05680593,0.00099174,120]
[354810280,1740711056746,-535.88,0.00099175,120]
[354810281,1740711056756,-500.0,0.00099175,120]
[354810282,1740711056767,-500.0,0.00099175,120]
[354810283,1740711056847,-619.7,0.00099175,120]
[354810284,1740711056858,-316.58126716,0.00099175,120]
[354810285,1740711056867,-500.0,0.00099175,120]
[354810286,1740711056876,-3780.72,0.00099175,120]
[354810287,1740711056886,-3816.17,0.00099175,120]
[354810288,1740711056895,-28125.23,0.00099175,7]
[354810289,1740711056904,-2308.32,0.00099175,120]
[354810290,1740711056913,-684.28,0.00099175,120]
[354810291,1740711056924,-500.0,0.00099176,120]
[354810292,1740711056933,-151.0,0.00099176,120]
[354810293,1740711056942,-151.0,0.00099176,120]
[354810294,1740711056951,-151.0,0.00099176,120]
[354810295,1740711056960,-151.0,0.00099176,120]
[354810296,1740711056970,-151.0,0.00099176,120]
[354810297,1740711056980,-151.0,0.00099176,120]
[354810298,1740711056989,-151.0,0.00099176,120]
[354810299,1740711056998,-213.21056373,0.00099176,120]
[354810300,1740711057007,-467.167709,0.00099176,120]
[354810301,1740711057016,-467.167709,0.00099176,120]
[354810302,1740711057026,-500.0,0.00099176,120]
[354810303,1740711057035,-500.0,0.00099176,120]
[354810304,1740711057045,-3354.16,0.00099176,120]
[354810305,1740711057055,-672.305236,0.00099176,120]
[354810306,1740711057064,-672.305236,0.00099176,120]
[354810307,1740711057073,-151.0,0.00099176,2]
[354810308,1740711057083,-151.0,0.00099176,2]
[354810309,1740711057092,-448.133255,0.00099176,120]
[354810310,1740711057101,-448.133255,0.00099176,120]
[354810311,1740711057110,-320.05246936,0.00099208,60]
[354810312,1740711057120,-1000.0,0.001,120]
[354810313,1740711057130,-500.0,0.001,120]
[354810314,1740711057139,-25124.971318,0.001,120]
[354810315,1740711057149,-151.0,0.001,120]
[354810316,1740711057158,-270.537432,0.001,120]
[354810317,1740711057167,-155184.19842843,0.001,120]
[354810318,1740711057179,-183.237607,0.001,2]
[354810319,1740711057188,-324.32,0.001,60]
[354810320,1740711057198,-1911.22,0.001002,14]
[354810321,1740711057208,-500.0,0.00101369,120]
[354810322,1740711057217,-1220.83,0.00101369,120]
[354810323,1740711057227,-3264.74,0.00101369,120]
[354810324,1740711057236,-1178.86,0.00101369,120]
[354810325,1740711057245,-1624.99,0.00101815,120]
[354810326,1740711057254,-560.65,0.00101815,120]
[354810327,1740711057264,-1395.02,0.00101815,120]
[354810328,1740711057273,-1982.16886109,0.00101908,60]
[354810329,1740711057283,-2500.0,0.00101908,14]
[354810330,1740711057292,-2500.0,0.00101908,14]
[354810331,1740711057301,-586.18,0.00101913,120]
[354810332,1740711057310,-500.0,0.00101913,120]
[354810333,1740711057320,-689.73,0.00101913,120]
[354810334,1740711057329,-721.81,0.00101913,120]
[354810335,1740711057338,-3541.66,0.00101913,120]
[354810336,1740711057348,-1916.66,0.00101913,120]
[354810337,1740711057359,-3093.38,0.00101913,120]
[354810338,1740711057368,-745.08,0.00101913,120]
[354810339,1740711057378,-1141.61,0.00101913,120]
[354810340,1740711057387,-585.52,0.00101913,120]
[354810341,1740711057397,-2121.8,0.00101913,120]
[354810342,1740711057406,-500.0,0.00101913,120]
[354810343,1740711057415,-799.49,0.00101913,120]
[354810344,1740711057427,-1492.81,0.00101913,120]
[354810345,1740711057436,-762.94,0.00101913,120]
[354810346,1740711057447,-500.0,0.00101913,120]
[354810347,1740711057457,-500.0,0.00101913,120]
[354810348,1740711057466,-725.19,0.00101913,120]
[354810349,1740711057476,-500.0,0.00101913,120]
[354810350,1740711057487,-6264.52,0.00101913,120]
[354810351,1740711057496,-500.0,0.00101913,120]
[354810352,1740711057505,-15140.25,0.00101913,7]
[354810353,1740711057515,-1016.52,0.00101913,120]
[354810354,1740711057525,-500.0,0.00101913,120]
[354810355,1740711057535,-535.88,0.00101914,120]
[354810356,1740711057545,-500.0,0.00101914,120]
[354810357,1740711057555,-500.0,0.00101914,120]
[354810358,1740711057564,-619.7,0.00101914,120]
[354810359,1740711057574,-500.0,0.00101914,120]
[354810360,1740711057584,-3780.72,0.00101914,120]
[354810361,1740711057594,-3816.17,0.00101914,120]
[354810362,1740711057603,-28125.23,0.00101914,7]
[354810363,1740711057612,-2308.32,0.00101914,120]
[354810364,1740711057622,-684.28,0.00101914,120]
[354810365,1740711057632,-151.0,0.00101914,120]
[354810366,1740711057642,-1076.841152,0.00101914,120]
[354810367,1740711057651,-1076.841152,0.00101914,120]
[354810368,1740711057661,-184.451296,0.00101914,120]
[354810369,1740711057672,-184.451296,0.00101914,120]
[354810370,1740711057682,-500.0,0.00101916,120]
[354810371,1740711057693,-612.71983948,0.00101916,120]
[354810372,1740711057706,-500.0,0.00101916,120]
[354810373,1740711057715,-3354.16,0.00101916,120]
[354810374,1740711057725,-500.0,0.00104109,120]
[354810375,1740711057736,-1220.83,0.00104109,120]
[354810376,1740711057746,-3264.74,0.00104109,120]
[354810377,1740711057755,-1178.86,0.00104109,120]